fUST/lending_fUST_20250826
["ID","MTS","AMOUNT","RATE_DAILY","PERIOD"]
[381432262,1756194667097,-151.0,0.00041369,30]
[381432263,1756194667146,-1318.18,0.00041369,30]
[381432264,1756194667193,-628.36,0.00041369,30]
[381432265,1756194667240,-236.617384,0.00041369,120]
[381432266,1756194667288,-998.62,0.00041369,30]
[381432267,1756194667334,-480.0,0.00041369,30]
[381432268,1756194667381,-151.0,0.00041369,120]
[381432269,1756194667431,-151.0,0.00041369,120]
[381432270,1756194667478,-480.0,0.00041369,30]
[381432271,1756194667524,-2028.04,0.00041369,30]
[381432272,1756194667569,-575.86,0.00041369,30]
[381432273,1756194667614,-480.0,0.00041369,30]
[381432274,1756194667658,-480.0,0.00041369,30]
[381432275,1756194667703,-676.27,0.00041369,30]
[381432276,1756194667748,-6956.67,0.00041369,30]
[381432277,1756194667794,-480.0,0.00041369,30]
[381432278,1756194667841,-808.37,0.00041369,30]
[381432279,1756194667889,-480.0,0.00041369,30]
[381432280,1756194667937,-2171.25,0.00041369,30]
[381432281,1756194667987,-7077.92,0.00041369,30]
[381432282,1756194668034,-480.0,0.00041369,30]
[381432283,1756194668080,-535.37,0.00041369,30]
[381432284,1756194668129,-151.0,0.00041369,120]
[381432285,1756194668174,-795.5,0.00041369,30]
[381432286,1756194668219,-480.0,0.00041369,30]
[381432287,1756194668267,-480.0,0.00041369,30]
[381432288,1756194668312,-480.0,0.00041369,30]
[381432289,1756194668358,-1119.27,0.00041369,30]
[381432290,1756194668406,-480.0,0.00041369,30]
[381432291,1756194668451,-480.0,0.00041369,30]
[381432292,1756194668497,-480.0,0.00041369,30]
[381432293,1756194668541,-542.64,0.00041369,30]
[381432294,1756194668588,-480.0,0.00041369,30]
[381432295,1756194668634,-480.0,0.00041369,30]
[381432296,1756194668681,-2075.8,0.00041369,30]
[381432297,1756194668729,-768.77,0.00041369,30]
[381432298,1756194668774,-480.0,0.00041369,30]
[381432299,1756194668819,-480.0,0.00041369,30]
[381432300,1756194668864,-595.11,0.00041369,30]
[381432301,1756194668913,-1945.2,0.00041369,30]
[381432302,1756194668957,-480.0,0.00041369,30]
[381432303,1756194669002,-1274.86,0.00041369,30]
[381432304,1756194669046,-480.0,0.00041369,30]
[381432305,1756194669092,-731.61,0.00041369,30]
[381432306,1756194669137,-989.24,0.00041369,30]
[381432307,1756194669184,-1134.03,0.00041369,30]
[381432308,1756194669231,-719.26,0.00041369,30]
[381432309,1756194669276,-480.0,0.00041369,30]
[381432310,1756194669321,-485.99,0.00041369,30]
[381432311,1756194669366,-480.0,0.00041369,30]
[381432313,1756194669415,-480.0,0.00041369,30]
[381432314,1756194669462,-480.0,0.00041369,30]
[381432315,1756194669508,-480.0,0.00041369,30]
[381432316,1756194669553,-929.56,0.00041369,30]
[381432317,1756194669597,-670.75,0.00041369,30]
[381432318,1756194669642,-480.0,0.00041369,30]
[381432319,1756194669687,-7075.87,0.00041369,30]
[381432320,1756194669734,-8703.33,0.00041369,30]
[381432321,1756194669779,-480.0,0.00041369,30]
[381432322,1756194669824,-743.81,0.00041369,30]
[381432323,1756194669872,-810.88,0.00041369,30]
[381432324,1756194669919,-639.05,0.00041369,30]
[381432325,1756194669966,-1090.23,0.00041369,30]
[381432326,1756194670011,-685.88,0.00041369,30]
[381432327,1756194670057,-480.0,0.00041369,30]
[381432328,1756194670104,-1452.09,0.00041369,30]
[381432329,1756194670150,-480.0,0.00041369,30]
[381432330,1756194670197,-1255.38,0.00041369,30]
[381432331,1756194670242,-551.33,0.00041369,30]
[381432332,1756194670286,-480.0,0.00041369,30]
[381432333,1756194670330,-701.92,0.00041369,30]
[381432334,1756194670375,-867.63,0.00041369,30]
[381432335,1756194670420,-671.86,0.00041369,30]
[381432336,1756194670466,-2707.12,0.00041369,30]
[381432337,1756194670511,-480.0,0.00041369,30]
[381432338,1756194670556,-480.0,0.00041369,30]
[381432339,1756194670602,-1054.73,0.00041369,30]
[381432340,1756194670647,-480.0,0.00041369,30]
[381432341,1756194670692,-480.0,0.00041369,30]
[381432342,1756194670738,-508.25,0.00041369,30]
[381432343,1756194670784,-480.0,0.00041369,30]
[381432344,1756194670831,-4401.16,0.00041369,30]
[381432345,1756194670878,-945.22,0.00041369,30]
[381432346,1756194670926,-20329.46,0.00041369,30]
[381432347,1756194670973,-480.0,0.00041369,30]
[381432348,1756194671025,-480.0,0.00041369,30]
[381432349,1756194671070,-480.0,0.00041369,30]
[381432350,1756194671116,-480.0,0.00041369,30]
[381432351,1756194671163,-480.0,0.00041369,30]
[381432352,1756194671208,-500.0,0.00041369,120]
[381432353,1756194671253,-1362.21,0.00041369,30]
[381432354,1756194671299,-480.0,0.00041369,30]
[381432355,1756194671345,-480.0,0.00041369,30]
[381432356,1756194671391,-480.0,0.00041369,30]
[381432357,1756194671597,-1397.26,0.00041369,30]
[381432358,1756194671642,-480.0,0.00041369,30]
[381432359,1756194671687,-480.0,0.00041369,30]
[381432360,1756194671732,-480.0,0.00041369,30]
[381432361,1756194671777,-2650.73,0.00041369,30]
[381432362,1756194671823,-167.54047908,0.00041369,30]
[381432363,1756194671869,-774.54,0.00041369,30]
[381432364,1756194671920,-740.5,0.00041369,30]
[381432365,1756194671966,-480.0,0.00041369,30]
[381432366,1756194672019,-624.41,0.00041369,30]
[381432367,1756194672077,-1961.46,0.00041369,30]
[381432368,1756194672123,-480.0,0.00041369,30]
[381432369,1756194672169,-2886.99,0.00041369,30]
[381432370,1756194672215,-11357.83,0.00041369,30]
[381432371,1756194672260,-484.73,0.00041369,30]
[381432372,1756194672304,-3483.47,0.00041369,30]
[381432373,1756194672347,-480.0,0.00041369,30]
[381432374,1756194672390,-490.48,0.00041369,30]
[381432375,1756194672435,-6533.1,0.00041369,30]
[381432376,1756194672479,-480.0,0.00041369,30]
[381432377,1756194672524,-5302.95,0.00041369,30]
[381432378,1756194672569,-849.44,0.00041369,30]
[381432379,1756194672612,-480.0,0.00041369,30]
[381432380,1756194672658,-1015.52,0.00041369,30]
[381432381,1756194672703,-480.0,0.00041369,30]
[381432382,1756194672750,-480.0,0.00041369,30]
[381432383,1756194672796,-555.56,0.00041369,30]
[381432384,1756194672842,-480.0,0.00041369,30]
[381432385,1756194672888,-271.499325,0.00041369,120]
[381432386,1756194672933,-986.67,0.00041369,30]
[381432387,1756194672980,-480.0,0.00041369,30]
[381432388,1756194673027,-1674.3,0.00041369,30]
[381432389,1756194673074,-480.0,0.00041369,30]
[381432390,1756194673121,-495.25,0.00041369,30]
[381432391,1756194673167,-480.0,0.00041369,30]
[381432392,1756194673214,-480.0,0.00041369,30]
[381432393,1756194673259,-874.7,0.00041369,30]
[381432394,1756194673305,-480.0,0.00041369,30]
[381432395,1756194673351,-8252.35,0.00041369,30]
[381432396,1756194673395,-698.13,0.00041369,30]
[381432397,1756194673440,-480.0,0.00041369,30]
[381432398,1756194673484,-1479.27,0.00041369,30]
[381432399,1756194673529,-480.0,0.00041369,30]
[381432400,1756194673573,-480.0,0.00041369,30]
[381432401,1756194673618,-1141.81,0.00041369,30]
[381432402,1756194673665,-1104.46,0.00041369,30]
[381432403,1756194673712,-690.29,0.00041369,30]
[381432404,1756194673760,-863.67,0.00041369,30]
[381432405,1756194673807,-480.0,0.00041369,30]
[381432406,1756194673853,-480.0,0.00041369,30]
[381432407,1756194673898,-480.0,0.00041369,30]
[381432408,1756194673945,-1155.37,0.00041369,30]
[381432409,1756194673994,-633.85,0.00041369,30]
[381432411,1756194674039,-480.0,0.00041369,30]
[381432412,1756194674084,-480.0,0.00041369,30]
[381432413,1756194674136,-480.0,0.00041369,30]
[381432414,1756194674181,-480.0,0.00041369,30]
[381432415,1756194674226,-283.5790474,0.00041369,30]
[381432416,1756194674271,-480.0,0.00041369,30]
[381432417,1756194674320,-1297.12,0.00041369,30]
[381432418,1756194674364,-480.0,0.00041369,30]
[381432419,1756194674411,-9764.89,0.00041369,30]
[381432420,1756194674456,-2076.21,0.00041369,30]
[381432421,1756194674503,-480.0,0.00041369,30]
[381432422,1756194674547,-1218.0,0.00041369,30]
[381432423,1756194674594,-5324.22,0.00041369,30]
[381432426,1756194674638,-619.39,0.00041369,30]
[381432427,1756194674682,-1206.37,0.00041369,30]
[381432428,1756194674736,-480.0,0.00041369,30]
[381432429,1756194674787,-480.0,0.00041369,30]
[381432430,1756194674846,-4441.01,0.00041369,30]
[381432431,1756194674903,-533.91,0.00041369,30]
[381432432,1756194674963,-480.0,0.00041369,30]
[381432433,1756194675019,-658.34,0.00041369,30]
[381432434,1756194675072,-586.55,0.00041369,30]
[381432435,1756194675131,-480.0,0.00041369,30]
[381432436,1756194675193,-151.0,0.00041369,120]
[381432437,1756194675250,-4122.24,0.00041369,30]
[381432438,1756194675306,-3087.91,0.00041369,30]
[381432439,1756194675359,-480.0,0.00041369,30]
[381432440,1756194675415,-2733.49,0.00041369,30]
[381432441,1756194675468,-2648.74,0.00041369,30]
[381432442,1756194675521,-1448.53,0.00041369,30]
[381432443,1756194675576,-480.0,0.00041369,30]
[381432444,1756194675629,-480.0,0.00041369,30]
[381432445,1756194675681,-1422.65,0.00041369,30]
[381432446,1756194675732,-402.35160644,0.00041369,30]
[381432447,1756194675783,-923.1,0.00041369,30]
[381432448,1756194675836,-884.64,0.00041369,30]
[381432449,1756194675887,-701.07,0.00041369,30]
[381432450,1756194675938,-998.46,0.00041369,30]
[381432451,1756194675992,-2813.84,0.00041369,30]
[381432452,1756194676043,-1205.53,0.00041369,30]
[381432453,1756194676095,-2073.73,0.00041369,30]
[381432454,1756194676148,-480.0,0.00041369,30]
[381432455,1756194676201,-480.0,0.00041369,30]
[381432456,1756194676256,-181.3007274,0.00041369,30]
[381432457,1756194676306,-480.0,0.00041369,30]
[381432458,1756194676357,-495.19,0.00041369,30]
[381432459,1756194676409,-523.36,0.00041369,30]
[381432460,1756194676461,-480.0,0.00041369,30]
[381432461,1756194676512,-480.0,0.00041369,30]
[381432462,1756194676561,-1190.45,0.00041369,30]
[381432463,1756194676613,-954.21,0.00041369,30]
[381432464,1756194676665,-2013.26,0.00041369,30]
[381432465,1756194676716,-3451.01,0.00041369,30]
[381432466,1756194676766,-480.0,0.00041369,30]
[381432467,1756194676819,-159.58383,0.0004137,60]
[381432468,1756194676868,-200.0,0.000415,120]
[381432469,1756194676921,-200.0,0.00041554,120]
[381432470,1756194676974,-2264.10087164,0.00041642,30]
[381432471,1756194677026,-1400.0,0.00041643,60]
[381432472,1756194677080,-394.63736915,0.00041643,30]
[381432473,1756194677133,-154.32300057,0.00041643,30]
[381432474,1756194677183,-1023.96,0.00041643,30]
[381432475,1756194677233,-480.0,0.00041643,30]
[381432476,1756194677282,-480.0,0.00041643,30]
[381432477,1756194677333,-480.0,0.00041643,30]
[381432478,1756194677388,-627.58,0.00041643,30]
[381432479,1756194677437,-480.0,0.00041643,30]
[381432480,1756194677487,-1015.78,0.00041643,30]
[381432481,1756194677535,-480.0,0.00041643,30]
[381432482,1756194677583,-480.0,0.00041643,30]
[381432483,1756194677633,-480.0,0.00041643,30]
[381432484,1756194677682,-965.63,0.00041643,30]
[381432485,1756194677729,-283.60512513,0.00041643,30]
[381432486,1756194677777,-480.0,0.00041643,30]
[381432487,1756194677826,-493.3,0.00041643,30]
[381432488,1756194677876,-480.0,0.00041643,30]
[381432489,1756194677928,-480.0,0.00041643,30]
[381432490,1756194677978,-480.0,0.00041643,30]
[381432491,1756194678029,-1167.64,0.00041643,30]
[381432492,1756194678080,-740.63,0.00041643,30]
[381432493,1756194678130,-480.0,0.00041643,30]
[381432494,1756194678489,-1120.72,0.00041643,30]
[381432495,1756194678535,-789.04,0.00041643,30]
[381432496,1756194678579,-480.0,0.00041643,30]
[381432497,1756194678623,-480.0,0.00041643,30]
[381432498,1756194678671,-480.0,0.00041643,30]
[381432499,1756194678716,-480.0,0.00041643,30]
[381432500,1756194678762,-480.0,0.00041643,30]
[381432501,1756194678809,-480.0,0.00041643,30]
[381432502,1756194678855,-480.0,0.00041643,30]
[381432503,1756194678899,-1939.98,0.00041643,30]
[381432504,1756194678950,-589.20690677,0.00041643,30]
[381432505,1756194678995,-480.0,0.00041643,30]
[381432506,1756194679041,-480.0,0.00041643,30]
[381432507,1756194679086,-480.0,0.00041643,30]
[381432508,1756194679134,-480.0,0.00041643,30]
[381432509,1756194679178,-480.0,0.00041643,30]
[381432510,1756194679223,-569.37078806,0.00041643,30]
[381432511,1756194679269,-480.0,0.00041643,30]
[381432512,1756194679316,-480.0,0.00041643,30]
[381432513,1756194679363,-480.0,0.00041643,30]
[381432514,1756194679409,-480.0,0.00041643,30]
[381432515,1756194679455,-529.71,0.00041643,30]
[381432516,1756194679502,-480.0,0.00041643,30]
[381432517,1756194679548,-151.0,0.00041643,120]
[381432518,1756194679594,-480.0,0.00041643,30]
[381432519,1756194679640,-992.79,0.00041643,30]
[381432520,1756194679685,-480.0,0.00041643,30]
[381432521,1756194679730,-480.0,0.00041643,30]
[381432522,1756194679775,-775.31,0.00041643,30]
[381432523,1756194679819,-670.8,0.00041643,30]
[381432524,1756194679864,-595.57,0.00041643,30]
[381432525,1756194679912,-480.0,0.00041643,30]
[381432526,1756194679964,-516.29,0.00041643,30]
[381432527,1756194680010,-480.0,0.00041643,30]
[381432528,1756194680056,-480.0,0.00041643,30]
[381432529,1756194680103,-738.86,0.00041643,30]
[381432530,1756194680147,-830.16,0.00041643,30]
[381432532,1756194680191,-881.81,0.00041643,30]
[381432533,1756194680235,-1888.57,0.00041643,30]
[381432534,1756194680280,-480.0,0.00041643,30]
[381432535,1756194680325,-480.0,0.00041643,30]
[381432536,1756194680370,-274.64367398,0.00041643,30]
[381432537,1756194680415,-480.0,0.00041643,30]
[381432538,1756194680458,-480.0,0.00041643,30]
[381432539,1756194680504,-480.0,0.00041643,30]
[381432540,1756194680549,-1000.0,0.00041643,30]
[381432541,1756194680594,-222.15101079,0.00041643,30]
[381432542,1756194680639,-516.64743232,0.00041643,30]
[381432543,1756194680682,-480.0,0.00041643,30]
[381432544,1756194680727,-480.0,0.00041643,30]
[381432545,1756194680778,-480.0,0.00041643,30]
[381432546,1756194680823,-503.16,0.00041643,30]
[381432547,1756194680867,-480.0,0.00041643,30]
[381432548,1756194680915,-480.0,0.00041643,30]
[381432549,1756194680960,-610.91,0.00041643,30]
[381432550,1756194681006,-480.0,0.00041643,30]
[381432551,1756194681051,-480.0,0.00041643,30]
[381432552,1756194681097,-480.0,0.00041643,30]
[381432553,1756194681144,-480.0,0.00041643,30]
[381432554,1756194681189,-1163.92,0.00041643,30]
[381432555,1756194681234,-480.0,0.00041643,30]
[381432556,1756194681280,-480.0,0.00041643,30]
[381432557,1756194681326,-480.0,0.00041643,30]
[381432558,1756194681371,-930.97,0.00041643,30]
[381432559,1756194681420,-480.0,0.00041643,30]
[381432560,1756194681465,-480.0,0.00041643,30]
[381432561,1756194681511,-1108.74,0.00041643,30]
[381432562,1756194681557,-599.55,0.00041643,30]
[381432563,1756194681603,-480.0,0.00041643,30]
[381432564,1756194681649,-1934.2,0.00041643,30]
[381432565,1756194681693,-480.0,0.00041643,30]
[381432566,1756194681739,-480.0,0.00041643,30]
[381432567,1756194681785,-480.0,0.00041643,30]
[381432568,1756194681829,-480.0,0.00041643,30]
[381432569,1756194681874,-480.0,0.00041643,30]
[381432570,1756194681923,-788.9,0.00041643,30]
[381432571,1756194681968,-709.26,0.00041643,30]
[381432572,1756194682015,-480.0,0.00041643,30]
[381432573,1756194682061,-480.0,0.00041643,30]
[381432574,1756194682105,-480.0,0.00041643,30]
[381432575,1756194682151,-601.7,0.00041643,30]
[381432576,1756194682195,-480.0,0.00041643,30]
[381432577,1756194682238,-480.0,0.00041643,30]
[381432578,1756194682284,-639.45,0.00041643,30]
[381432579,1756194682328,-480.0,0.00041643,30]
[381432580,1756194682372,-480.0,0.00041643,30]
[381432581,1756194682416,-480.0,0.00041643,30]
[381432582,1756194682461,-480.0,0.00041643,30]
[381432583,1756194682505,-1823.41,0.00041643,30]
[381432584,1756194682548,-480.0,0.00041643,30]
[381432585,1756194682590,-480.0,0.00041643,30]
[381432586,1756194682632,-480.0,0.00041643,30]
[381432587,1756194682678,-545.62,0.00041643,30]
[381432588,1756194682722,-687.41,0.00041643,30]
[381432589,1756194682765,-480.0,0.00041643,30]
[381432590,1756194682810,-480.0,0.00041643,30]
[381432591,1756194682853,-480.0,0.00041643,30]
[381432592,1756194682899,-480.0,0.00041643,30]
[381432593,1756194682946,-855.44,0.00041643,30]
[381432594,1756194683145,-649.19,0.00041643,30]
[381432595,1756194683188,-693.2,0.00041643,30]
[381432596,1756194683230,-480.0,0.00041643,30]
[381432597,1756194683275,-683.3,0.00041643,30]
[381432598,1756194683318,-1912.46,0.00041643,30]
[381432599,1756194683360,-428.11577955,0.00041643,30]
[381432600,1756194683404,-480.0,0.00041643,30]
[381432601,1756194683447,-766.45,0.00041643,30]
[381432602,1756194683491,-513.85,0.00041643,30]
[381432603,1756194683534,-734.59,0.00041643,30]
[381432604,1756194683577,-677.04,0.00041643,30]
[381432605,1756194683621,-537.38,0.00041643,30]
[381432606,1756194683665,-1620.92,0.00041643,30]
[381432607,1756194683709,-480.0,0.00041643,30]
[381432608,1756194683751,-480.0,0.00041643,30]
[381432609,1756194683794,-638.21,0.00041643,30]
[381432610,1756194683838,-2402.72,0.00041643,30]
[381432611,1756194683883,-480.0,0.00041643,30]
[381432612,1756194683928,-1437.38,0.00041643,30]
[381432613,1756194683971,-1144.32,0.00041643,30]
[381432614,1756194684015,-613.87,0.00041643,30]
[381432615,1756194684058,-783.67,0.00041643,30]
[381432616,1756194684102,-508.42,0.00041643,30]
[381432617,1756194684145,-480.0,0.00041643,30]
[381432618,1756194684190,-480.0,0.00041643,30]
[381432619,1756194684233,-1321.98,0.00041643,30]
[381432620,1756194684276,-480.0,0.00041643,30]
[381432621,1756194684320,-480.0,0.00041643,30]
[381432622,1756194684364,-503.75,0.00041643,30]
[381432623,1756194684407,-851.79,0.00041643,30]
[381432624,1756194684450,-1836.44,0.00041643,30]
[381432625,1756194684494,-769.41,0.00041643,30]
[381432626,1756194684537,-829.33,0.00041643,30]
[381432627,1756194684581,-484.85,0.00041643,30]
[381432628,1756194684624,-480.0,0.00041643,30]
[381432629,1756194684667,-706.72,0.00041643,30]
[381432630,1756194684711,-494.68,0.00041643,30]
[381432631,1756194684753,-480.0,0.00041643,30]
[381432632,1756194684796,-519.93,0.00041643,30]
[381432633,1756194684839,-480.0,0.00041643,30]
[381432634,1756194684882,-420.99910279,0.00041643,30]
[381432635,1756194684927,-614.66,0.00041643,30]
[381432636,1756194684970,-480.0,0.00041643,30]
[381432637,1756194685016,-500.0,0.00041643,30]
[381432638,1756194685060,-480.0,0.00041643,30]
[381432639,1756194685105,-480.0,0.00041643,30]
[381432640,1756194685149,-694.25,0.00041643,30]
[381432641,1756194685194,-1369.36,0.00041643,30]
[381432642,1756194685238,-480.0,0.00041643,30]
[381432643,1756194685282,-480.0,0.00041643,30]
[381432644,1756194685326,-480.0,0.00041643,30]
[381432645,1756194685370,-515.18,0.00041643,30]
[381432646,1756194685414,-480.0,0.00041643,30]
[381432647,1756194685458,-1190.24,0.00041643,30]
[381432648,1756194685502,-1697.56,0.00041643,30]
[381432649,1756194685545,-971.6,0.00041643,30]
[381432650,1756194685588,-506.36,0.00041643,30]
[381432651,1756194685631,-480.0,0.00041643,30]
[381432652,1756194685675,-480.0,0.00041643,30]
[381432653,1756194685718,-818.51,0.00041643,30]
[381432654,1756194685762,-480.0,0.00041643,30]
[381432655,1756194685805,-480.0,0.00041643,30]
[381432656,1756194685851,-756.09,0.00041643,30]
[381432657,1756194685896,-480.0,0.00041643,30]
[381432658,1756194685944,-1526.41,0.00041643,30]
[381432659,1756194685990,-480.0,0.00041643,30]
[381432660,1756194686036,-480.0,0.00041643,30]
[381432661,1756194686084,-849.41,0.00041643,30]
[381432662,1756194686132,-480.0,0.00041643,30]
[381432663,1756194686180,-14017.96,0.00041643,30]
[381432664,1756194686224,-480.0,0.00041643,30]
[381432665,1756194686268,-480.0,0.00041643,30]
[381432666,1756194686312,-3090.97,0.00041643,30]
[381432667,1756194686357,-480.0,0.00041643,30]
[381432668,1756194686404,-480.0,0.00041643,30]
[381432669,1756194686448,-777.18,0.00041643,30]
[381432670,1756194686492,-480.0,0.00041643,30]
[381432671,1756194686536,-480.0,0.00041643,30]
[381432672,1756194686579,-480.0,0.00041643,30]
[381432673,1756194686622,-640.76,0.00041643,30]
[381432674,1756194686665,-480.0,0.00041643,30]
[381432675,1756194686709,-480.0,0.00041643,30]
[381432676,1756194686753,-548.66,0.00041643,30]
[381432677,1756194686795,-480.0,0.00041643,30]
[381432678,1756194686837,-1155.47,0.00041643,30]
[381432679,1756194686880,-835.48,0.00041643,30]
[381432680,1756194686925,-1438.84,0.00041643,30]
[381432681,1756194686968,-480.0,0.00041643,30]
[381432682,1756194687012,-801.23,0.00041643,30]
[381432683,1756194687054,-480.0,0.00041643,30]
[381432684,1756194687096,-1653.22,0.00041643,30]
[381432685,1756194687138,-634.76,0.00041643,30]
[381432686,1756194687181,-1288.27,0.00041643,30]
[381432687,1756194687225,-480.0,0.00041643,30]
[381432688,1756194687271,-480.0,0.00041643,30]
[381432689,1756194687322,-1696.39,0.00041643,30]
[381432690,1756194687375,-2360.13,0.00041643,30]
[381432691,1756194687419,-520.04,0.00041643,30]
[381432692,1756194687462,-3206.21,0.00041643,30]
[381432696,1756194687514,-540.88,0.00041643,30]
[381432697,1756194687558,-787.9,0.00041643,30]
[381432698,1756194687602,-2374.48,0.00041643,30]
[381432699,1756194687649,-480.0,0.00041643,30]
[381432700,1756194687693,-843.33,0.00041643,30]
[381432701,1756194687884,-480.0,0.00041643,30]
[381432702,1756194687948,-480.0,0.00041643,30]
[381432703,1756194687995,-480.0,0.00041643,30]
[381432704,1756194688041,-629.5,0.00041643,30]
[381432705,1756194688085,-480.0,0.00041643,30]
[381432706,1756194688128,-1519.32,0.00041643,30]
[381432707,1756194688172,-480.0,0.00041643,30]
[381432708,1756194688215,-480.0,0.00041643,30]
[381432709,1756194688260,-480.0,0.00041643,30]
[381432710,1756194688304,-784.84,0.00041643,30]
[381432711,1756194688349,-480.0,0.00041643,30]
[381432712,1756194688398,-561.78,0.00041643,30]
[381432713,1756194688451,-194.35586415,0.00041643,30]
[381432714,1756194688497,-957.24,0.00041643,30]
[381432715,1756194688542,-633.78,0.00041643,30]
[381432716,1756194688587,-480.0,0.00041643,30]
[381432717,1756194688633,-480.0,0.00041643,30]
[381432718,1756194688679,-480.0,0.00041643,30]
[381432719,1756194688724,-480.0,0.00041643,30]
[381432720,1756194688768,-1188.71,0.00041643,30]
[381432721,1756194688813,-605.04,0.00041643,30]
[381432722,1756194688858,-827.59,0.00041643,30]
[381432723,1756194688902,-480.0,0.00041643,30]
[381432724,1756194688954,-480.0,0.00041643,30]
[381432725,1756194689000,-929.58,0.00041643,30]
[381432726,1756194689045,-848.21,0.00041643,30]
[381432727,1756194689090,-1635.08,0.00041643,30]
[381432728,1756194689135,-480.0,0.00041643,30]
[381432729,1756194689179,-480.0,0.00041643,30]
[381432730,1756194689225,-480.0,0.00041643,30]
[381432731,1756194689270,-2247.25,0.00041643,30]
[381432732,1756194689314,-480.0,0.00041643,30]
[381432733,1756194689359,-524.42,0.00041643,30]
[381432734,1756194689403,-480.0,0.00041643,30]
[381432735,1756194689446,-802.4,0.00041643,30]
[381432736,1756194689491,-480.0,0.00041643,30]
[381432737,1756194689534,-480.0,0.00041643,30]
[381432738,1756194689577,-480.0,0.00041643,30]
[381432739,1756194689620,-575.65,0.00041643,30]
[381432740,1756194689661,-480.0,0.00041643,30]
[381432741,1756194689703,-2361.84,0.00041643,30]
[381432742,1756194689744,-480.0,0.00041643,30]
[381432743,1756194689786,-1145.16,0.00041643,30]
[381432744,1756194689829,-523.17,0.00041643,30]
[381432745,1756194689875,-914.02,0.00041643,30]
[381432746,1756194689921,-219.59,0.00041643,30]
[381432747,1756194689966,-1012.74,0.00041643,30]
[381432748,1756194690012,-1098.79,0.00041643,30]
[381432749,1756194690057,-1106.02,0.00041643,30]
[381432750,1756194690104,-2967.79,0.00041643,30]
[381432751,1756194690149,-799.86,0.00041643,30]
[381432752,1756194690193,-480.0,0.00041643,30]
[381432753,1756194690238,-528.17,0.00041643,30]
[381432754,1756194690280,-480.0,0.00041643,30]
[381432755,1756194690325,-480.0,0.00041643,30]
[381432756,1756194690369,-596.55,0.00041643,30]
[381432757,1756194690414,-562.85,0.00041643,30]
[381432758,1756194690458,-151.0,0.00041643,120]
[381432759,1756194690500,-1518.6,0.00041643,30]
[381432760,1756194690545,-480.0,0.00041643,30]
[381432761,1756194690589,-635.85,0.00041643,30]
[381432762,1756194690635,-507.3,0.00041643,30]
[381432763,1756194690680,-1946.23,0.00041643,30]
[381432764,1756194690724,-586.45,0.00041643,30]
[381432765,1756194690768,-754.41,0.00041643,30]
[381432766,1756194690811,-987.33,0.00041643,30]
[381432767,1756194690854,-480.0,0.00041643,30]
[381432768,1756194690903,-3020.32,0.00041643,30]
[381432769,1756194690952,-662.41,0.00041643,30]